fUSD/lending_fUSD_20260504
["ID","MTS","AMOUNT","RATE_DAILY","PERIOD"]
[421526727,1777824252000,-500.0,0.000192,7]
[421526723,1777824252000,-500.0,0.00022053,2]
[421526726,1777824252000,-196.0,0.00021942,2]
[421526724,1777824252000,-152.0,0.0002,2]
[421526725,1777824252000,-152.0,0.00021,2]
[421526729,1777824253000,166.66,0.00023881,30]
[421526728,1777824253000,166.66,0.00023072,30]
[421526730,1777824253000,-500.0,0.000192,7]
[421526731,1777824265000,-500.0,0.000192,7]
[421526739,1777824277000,-300.0,0.00022,2]
[421526738,1777824277000,-152.0,0.00022,2]
[421526740,1777824277000,-0.10253589,0.00022052,2]
[421526737,1777824277000,-47.89746411,0.00021942,2]
[421526736,1777824277000,-500.0,0.00021942,2]
[421526734,1777824277000,-74.03515911,0.00021399,2]
[421526735,1777824277000,-425.96484089,0.00021942,2]
[421526732,1777824277000,-300.0,0.000205,2]
[421526733,1777824277000,-200.0,0.00021399,2]
[421526741,1777824278000,-500.0,0.00022052,2]
[421526742,1777824278000,-46.89746411,0.00022052,2]
[421526744,1777824278000,-500.0,0.00022052,2]
[421526743,1777824278000,-453.10253589,0.00022052,2]
[421526748,1777824279000,-500.0,0.00022052,2]
[421526747,1777824279000,-500.0,0.00022052,2]
[421526746,1777824279000,-500.0,0.00022052,2]
[421526745,1777824279000,-500.0,0.00022052,2]
[421526755,1777824280000,-47.79353589,0.00022053,2]
[421526749,1777824280000,-140.20646411,0.00022052,2]
[421526752,1777824280000,-408.0,0.00022053,2]
[421526751,1777824280000,-44.20646411,0.00022053,2]
[421526753,1777824280000,-47.79353589,0.00022053,2]
[421526754,1777824280000,-452.20646411,0.00022053,2]
[421526750,1777824280000,-359.79353589,0.00022053,2]
[421526757,1777824280000,-397.79353589,0.00022053,2]
[421526758,1777824280000,-102.20646411,0.00022053,2]
[421526759,1777824280000,-397.79353589,0.00022053,2]
[421526760,1777824280000,-102.20646411,0.00022053,2]
[421526761,1777824280000,-397.79353589,0.00022053,2]
[421526762,1777824280000,-102.20646411,0.00022053,2]
[421526763,1777824280000,-397.79353589,0.00022053,2]
[421526756,1777824280000,-102.20646411,0.00022053,2]
[421526765,1777824431000,-5025.05110993,0.000192,3]
[421526767,1777824602000,-150.0,0.00021033,4]
[421526771,1777824602000,-150.0,0.00021033,2]
[421526769,1777824602000,-150.0,0.00021033,2]
[421526773,1777824602000,-1200.0,0.00022052,2]
[421526772,1777824602000,-500.0,0.00021953,2]
[421526768,1777824602000,-150.0,0.00021033,2]
[421526774,1777824602000,-102.20646411,0.00022053,2]
[421526775,1777824602000,-500.0,0.00022053,2]
[421526776,1777824602000,-500.0,0.00022053,2]
[421526779,1777824602000,-472.84464582,0.00022053,2]
[421526777,1777824602000,-500.0,0.00022053,2]
[421526778,1777824602000,-500.0,0.00022053,2]
[421526770,1777824602000,-150.0,0.00021033,2]
[421526780,1777824625000,-150.0,0.00021033,2]
[421526782,1777824625000,-150.0,0.00021033,2]
[421526781,1777824625000,-150.0,0.00021033,2]
[421526784,1777824625000,-4425.05110993,0.00021633,2]
[421526785,1777824625000,100000.0,0.000301,120]
[421526783,1777824625000,-150.0,0.000215,4]
[421526793,1777824626000,-27.15535418,0.00022053,2]
[421526792,1777824626000,-150.0,0.00021968,4]
[421526789,1777824626000,-250.0,0.00013,2]
[421526791,1777824626000,-3614.02273261,0.00021633,2]
[421526795,1777824626000,-183.87302314,0.00022053,2]
[421526796,1777824626000,-316.12697686,0.00022053,2]
[421526790,1777824626000,-300.0,0.00015,2]
[421526788,1777824626000,703.819,0.00030137,120]
[421526787,1777824626000,-5025.05110993,0.00021633,2]
[421526786,1777824626000,-5025.05110993,0.00021633,2]
[421526794,1777824626000,-500.0,0.00022053,2]
[421526797,1777824626000,-500.0,0.00022053,2]
[421526802,1777824626000,-500.0,0.00022053,2]
[421526799,1777824626000,-500.0,0.00022053,2]
[421526800,1777824626000,-500.0,0.00022053,2]
[421526811,1777824626000,-500.0,0.00022053,2]
[421526809,1777824626000,-500.0,0.00022053,2]
[421526808,1777824626000,-500.0,0.00022053,2]
[421526806,1777824626000,-208.92413307,0.00022053,2]
[421526807,1777824626000,-291.07586693,0.00022053,2]
[421526810,1777824626000,-500.0,0.00022053,2]
[421526803,1777824626000,-500.0,0.00022053,2]
[421526805,1777824626000,-500.0,0.00022053,2]
[421526804,1777824626000,-500.0,0.00022053,2]
[421526798,1777824626000,-500.0,0.00022053,2]
[421526801,1777824626000,-500.0,0.00022053,2]
[421526819,1777824627000,-266.024757,0.00022053,2]
[421526813,1777824627000,-500.0,0.00022053,2]
[421526815,1777824627000,-500.0,0.00022053,2]
[421526814,1777824627000,-500.0,0.00022053,2]
[421526817,1777824627000,-233.975243,0.00022053,2]
[421526816,1777824627000,-500.0,0.00022053,2]
[421526818,1777824627000,100000.0,0.0003,120]
[421526821,1777824627000,-506.22726226,0.00022053,2]
[421526812,1777824627000,-500.0,0.00022053,2]
[421526822,1777824627000,-500.0,0.00022053,2]
[421526827,1777824627000,-500.0,0.00022053,2]
[421526824,1777824627000,-500.0,0.00022053,2]
[421526823,1777824627000,-500.0,0.00022053,2]
[421526825,1777824627000,-500.0,0.00022053,2]
[421526829,1777824627000,-252.79909067,0.00022053,2]
[421526826,1777824627000,-500.0,0.00022053,2]
[421526828,1777824627000,-500.0,0.00022053,2]
[421526820,1777824627000,-500.0,0.00022053,2]
[421526830,1777824628000,-150.0,0.00022053,2]
[421526832,1777824628000,-500.0,0.00022053,2]
[421526831,1777824628000,-104.68579113,0.00022053,2]
[421526834,1777824628000,-500.0,0.00022053,2]
[421526833,1777824628000,-500.0,0.00022053,2]
[421526835,1777824628000,-500.0,0.00022053,2]
[421526836,1777824628000,-500.0,0.00022053,2]
[421526837,1777824628000,-500.0,0.00022053,2]
[421526838,1777824628000,-500.0,0.00022053,2]
[421526839,1777824629000,-500.0,0.00022053,2]
[421526841,1777824629000,-500.0,0.00022053,2]
[421526840,1777824629000,-500.0,0.00022053,2]
[421526842,1777824629000,-500.0,0.00022053,2]
[421526843,1777824629000,-500.0,0.00022053,2]
[421526845,1777824629000,-500.0,0.00022053,2]
[421526844,1777824629000,-500.0,0.00022053,2]
[421526853,1777824629000,-150.0,0.00022053,2]
[421526848,1777824629000,-304.59388873,0.00022053,2]
[421526847,1777824629000,-500.0,0.00022053,2]
[421526849,1777824629000,-150.0,0.00022053,2]
[421526851,1777824629000,-104.59388873,0.00022053,2]
[421526850,1777824629000,-45.40611127,0.00022053,2]
[421526852,1777824629000,-150.0,0.00022053,2]
[421526846,1777824629000,-500.0,0.00022053,2]
[421526855,1777824630000,-54.59388873,0.00022053,2]
[421526856,1777824630000,-150.0,0.00020948,2]
[421526854,1777824630000,-95.40611127,0.00022053,2]
[421526859,1777824630000,-150.0,0.00020948,2]
[421526857,1777824630000,-150.0,0.00020948,2]
[421526858,1777824630000,-150.0,0.00020948,2]
[421526862,1777824631000,-150.0,0.00020948,2]
[421526861,1777824631000,-150.0,0.00020948,2]
[421526860,1777824631000,-150.0,0.00020948,2]
[421526980,1777824642000,-150.0,0.00021954,2]
[421526978,1777824642000,-119.8091138,0.00020948,2]
[421526979,1777824642000,-30.1908862,0.00022053,2]
[421526990,1777824733000,200.0,0.0003013,120]
[421526991,1777824734000,-119.8091138,0.00021954,2]
[421527002,1777824906000,-500.0,0.00022053,2]
[421526999,1777824906000,-291.97167836,0.00022053,2]
[421527001,1777824906000,-500.0,0.00022053,2]
[421527000,1777824906000,-208.02832164,0.00022053,2]
[421526992,1777824906000,-934.36440888,0.00021954,2]
[421526995,1777824906000,-4932.87539657,0.00021954,2]
[421526996,1777824906000,-415.21522507,0.00022053,2]
[421526994,1777824906000,-369.0,0.00021954,2]
[421526997,1777824906000,-500.0,0.00022053,2]
[421526998,1777824906000,-500.0,0.00022053,2]
[421527003,1777824906000,-506.22726226,0.00022053,2]
[421526993,1777824906000,-284.01338075,0.00021954,2]
[421527012,1777824906000,-184.65717077,0.00022053,2]
[421527016,1777824906000,-1451.05916323,0.00022054,2]
[421527009,1777824906000,-500.0,0.00022053,2]
[421527008,1777824906000,-500.0,0.00022053,2]
[421527010,1777824906000,-500.0,0.00022053,2]
[421527014,1777824906000,-57577.61670912,0.00022054,2]
[421527015,1777824906000,-30538.05075786,0.00022054,2]
[421527006,1777824906000,-270.85859749,0.00022053,2]
[421527007,1777824906000,-500.0,0.00022053,2]
[421527011,1777824906000,-182.79414372,0.00022053,2]
[421527005,1777824906000,-500.0,0.00022053,2]
[421527013,1777824906000,-279.9401,0.00022053,2]
[421527004,1777824906000,-500.0,0.00022053,2]
[421527022,1777824907000,-2305.51128153,0.00021997,2]
[421527023,1777824907000,-4334.55101847,0.00022054,2]
[421527021,1777824907000,2604.56386297,7.945e-05,2]
[421527020,1777824907000,517.96914903,7.945e-05,2]
[421527019,1777824907000,-6640.0623,0.00021997,2]
[421527018,1777824907000,489.48108298,0.00024149,120]
[421527017,1777824907000,-6640.0623,0.00021997,2]
[421527024,1777824908000,-1086.018,0.00021954,2]
[421527025,1777824908000,-5554.0443,0.00022054,2]
[421527027,1777824908000,-6400.6933,0.00021954,2]
[421527028,1777824908000,-6640.0623,0.00021954,2]
[421527026,1777824908000,-239.369,0.00021613,2]
[421527034,1777824909000,-6520.2531862,0.00022054,2]
[421527033,1777824909000,-1102.7580862,0.00022054,2]
[421527032,1777824909000,-5117.4951,0.00021954,2]
[421527031,1777824909000,-300.0,0.00021953,2]
[421527030,1777824909000,200.0,0.00030137,120]
[421527029,1777824909000,-6640.0623,0.00021954,2]
[421527035,1777824910000,-6520.2531862,0.00022054,2]
[421527036,1777824910000,-6520.2531862,0.00022054,2]
[421527038,1777824910000,5000.01,0.0001,2]
[421527039,1777824910000,5000.01,0.0001,2]
[421527041,1777824910000,234999.97,0.0001,2]
[421527040,1777824910000,5000.01,0.0001,2]
[421527042,1777824910000,-5872.7649889,0.00021974,2]
[421527037,1777824910000,-6520.2531862,0.00022054,2]
[421527043,1777824911000,-175.69249894,0.00018739,2]
[421527045,1777824912000,-6520.2531862,0.00021954,2]
[421527044,1777824912000,-6520.2531862,0.00021954,2]
[421527046,1777824912000,1200.0,9.999e-05,2]
[421527047,1777824912000,1680.0,0.00010999,2]
[421527050,1777824912000,500.0,8.74e-05,2]
[421527049,1777824912000,193.0,8.74e-05,2]
[421527048,1777824912000,1931.0,0.00012099,2]
[421527052,1777824912000,250.0,8.972e-05,2]
[421527051,1777824912000,250.0,8.74e-05,2]
[421527053,1777825130000,200.0,0.00030137,120]
[421527056,1777825256000,152.0,0.00012738,7]
[421527063,1777825553000,690.79494,0.00026849,120]
[421527062,1777825553000,462.34633,0.00026849,120]
[421527068,1777825554000,-475.31,0.00014011,2]
[421527067,1777825554000,-150.0,0.00013957,2]
[421527065,1777825554000,-150.0,0.00013757,2]
[421527066,1777825554000,-475.31,0.00013957,2]
[421527064,1777825554000,-625.31,0.00013259,2]
[421527069,1777825555000,725.974312,0.00026849,120]
[421527070,1777825555000,-625.31,0.00014011,2]
[421527071,1777825555000,-99.38,0.00014011,2]
[421527072,1777825555000,-525.93,0.00014655,2]
[421527075,1777825555000,-525.93,0.00015353,2]
[421527074,1777825555000,-99.38,0.00014655,2]
[421527077,1777825555000,-525.93,0.00015412,2]
[421527076,1777825555000,-99.38,0.00015353,2]
[421527073,1777825555000,653.509239,0.00025839,120]
[421527083,1777825556000,-31.49193208,0.00016,2]
[421527082,1777825556000,-593.81806792,0.00015412,2]
[421527080,1777825556000,-560.25193208,0.00015412,2]
[421527081,1777825556000,590.481623,0.00023936,120]
[421527079,1777825556000,-65.05806792,0.00013974,7]
[421527078,1777825556000,86.94193208,0.00013974,7]
[421527088,1777825557000,-94.69,0.00015349,2]
[421527084,1777825557000,-300.0,0.00014011,2]
[421527085,1777825557000,-325.31,0.00015349,2]
[421527086,1777825557000,-250.0,0.00013508,2]
[421527087,1777825557000,-250.0,0.00014585,2]
[421527090,1777825557000,-166.33,0.00013248,2]
[421527091,1777825557000,-136.88806792,0.00016,2]
[421527089,1777825557000,-30.62,0.00016,2]
[421527093,1777825557000,-303.21806792,0.0001605,2]
[421527092,1777825557000,-322.09193208,0.0001605,2]
[421527094,1777825557000,-322.09193208,0.00016748,2]
[421527095,1777825637000,-303.21806792,0.00016748,2]
[421527099,1777825719000,-300.0,0.00016941,2]
[421527100,1777825719000,-3.21806792,0.00017114,2]
[421527098,1777825719000,293.471643,0.00022607,120]
[421527102,1777825742000,-118.34925029,0.00017133,2]
[421527101,1777825742000,-184.86881763,0.00017114,2]
[421527103,1777825743000,-303.21806792,0.00017133,2]
[421527104,1777825743000,212.490658,0.0002527,120]
[421527105,1777825743000,-303.21806792,0.00017133,2]
[421527106,1777825743000,-303.21806792,0.00017133,2]
[421527107,1777825744000,-303.21806792,0.00015,2]
[421527108,1777825744000,-3240.0,0.00015,2]
[421527111,1777825767000,-3240.0,0.00015,2]
[421527110,1777825767000,-3240.0,0.00015,2]
[421527109,1777825767000,-9799.08973781,0.00015,2]
[421527114,1777825768000,5000.01,8e-05,2]
[421527113,1777825768000,-3240.0,0.00015,2]
[421527112,1777825768000,-3240.0,0.00015,2]
[421527115,1777825793000,-731.38128085,0.00015,2]
[421527497,1777825898000,1761.47,8.897e-05,2]
[421527500,1777825899000,1761.47,0.00010302,2]
[421527498,1777825899000,1761.47,9.365e-05,2]
[421527499,1777825899000,1761.47,9.833e-05,2]
[421527502,1777825899000,1761.47,0.00011238,2]
[421527503,1777825899000,1761.47,0.00011706,2]
[421527504,1777825899000,-500.0,0.00012175,2]
[421527501,1777825899000,1761.47,0.0001077,2]
[421527512,1777825957000,-500.0,0.00012643,2]
[421527511,1777825957000,1680.0,0.00011846,2]
[421527510,1777825957000,5843.1548589,0.0003,120]
[421527509,1777825957000,1200.0,0.00010769,2]
[421527508,1777825957000,494.814002,0.00023467,120]
[421527507,1777825957000,-43.53306637,0.00012643,2]
[421527506,1777825957000,-1261.47,0.00012175,2]
[421527514,1777825992000,-500.0,0.00012,2]
[421527513,1777825992000,2713102.84565811,0.00012,2]
[421527516,1777825993000,-250.0,0.00012,2]
[421527515,1777825993000,-250.0,0.0001162,2]
[421527541,1777825994000,-18229.56539265,0.000149,2]
[421527534,1777825994000,-252898.68821409,0.00012,2]
[421527538,1777825994000,-1761.47,0.00013579,2]
[421527539,1777825994000,-1761.47,0.00014048,2]
[421527543,1777825994000,-1347019.42188723,0.00015,2]
[421527544,1777825994000,-1596.54753577,0.00015,2]
[421527542,1777825994000,-1761.47,0.00014984,2]
[421527555,1777825994000,-1761.47,0.00017325,2]
[421527546,1777825994000,-1761.47,0.00015452,2]
[421527547,1777825994000,-1761.47,0.00015921,2]
[421527550,1777825994000,-166.66,0.00017114,2]
[421527548,1777825994000,-1761.47,0.00016389,2]
[421527549,1777825994000,-1761.47,0.00016857,2]
[421527551,1777825994000,-2211.99654595,0.00017133,2]
[421527535,1777825994000,-1217.93693363,0.00012643,2]
[421527545,1777825994000,-1600.0,0.00015232,2]
[421527537,1777825994000,-1761.47,0.00013111,2]
[421527526,1777825994000,-367.5852002,0.00012,2]
[421527533,1777825994000,-3476.22377999,0.00012,2]
[421527518,1777825994000,-2003.26428485,0.00012,2]
[421527517,1777825994000,-505.29600081,0.00012,2]
[421527519,1777825994000,-280.72,0.00012,2]
[421527521,1777825994000,-1713.47845465,0.00012,2]
[421527520,1777825994000,-454.4361659,0.00012,2]
[421527523,1777825994000,-1306.980303,0.00012,2]
[421527522,1777825994000,-326.848,0.00012,2]
[421527536,1777825994000,-1123.0,0.0001303,2]
[421527525,1777825994000,-305.87152824,0.00012,2]
[421527524,1777825994000,-392.0570328,0.00012,2]
[421527552,1777825994000,-217.79,0.00017133,2]
[421527528,1777825994000,-610.44814184,0.00012,2]
[421527529,1777825994000,-99483.54343419,0.00012,2]
[421527530,1777825994000,-9762.77476752,0.00012,2]
[421527531,1777825994000,-819.1793169,0.00012,2]
[421527532,1777825994000,-300.73498378,0.00012,2]
[421527527,1777825994000,-1197.46509029,0.00012,2]
[421527554,1777825994000,-2000.0,0.00017207,2]
[421527540,1777825994000,-1761.47,0.00014516,2]
[421527558,1777825994000,-166.66,0.00017475,2]
[421527576,1777825994000,-2452.5133,0.00018758,2]
[421527575,1777825994000,-98914.211,0.00018758,2]
[421527579,1777825994000,-625.31,0.00018842,2]
[421527583,1777825994000,-551.21250411,0.00018857,2]
[421527582,1777825994000,-250869.21618719,0.00018857,2]
[421527580,1777825994000,-2474.647,0.00018842,2]
[421527581,1777825994000,-217.79,0.00018846,2]
[421527585,1777825994000,-2761.817968,0.00018857,2]
[421527586,1777825994000,-185473.77524045,0.00018857,2]
[421527588,1777825994000,-46116.50677768,0.00018857,2]
[421527587,1777825994000,-79357.22842967,0.00018857,2]
[421527589,1777825994000,-152.0,0.00018991,7]
[421527593,1777825994000,-2000.0,0.00019358,2]
[421527592,1777825994000,-166.66,0.00019333,2]
[421527590,1777825994000,-152.0,0.0001901,7]
[421527591,1777825994000,-500.0,0.000192,7]
[421527553,1777825994000,-1600.0,0.00017136,2]
[421527577,1777825994000,-1983.89243109,0.00018761,2]
[421527573,1777825994000,-166.66,0.00018735,2]
[421527584,1777825994000,-1558.4228929,0.00018857,2]
[421527574,1777825994000,-4161.6239,0.00018758,2]
[421527556,1777825994000,-153.33,0.00017343,2]
[421527578,1777825994000,-153.96205897,0.00018822,3]
[421527559,1777825994000,-18229.56539265,0.00017548,2]
[421527561,1777825994000,-1761.47,0.00017794,2]
[421527560,1777825994000,-150.0,0.00017612,2]
[421527564,1777825994000,-1000.0,0.00018112,2]
[421527566,1777825994000,-166.66,0.00018136,2]
[421527563,1777825994000,-500.0,0.00017937,2]
[421527562,1777825994000,-1852.42,0.00017855,2]
[421527557,1777825994000,-625.31,0.00017446,2]
[421527572,1777825994000,-1484.11,0.00018571,2]
[421527567,1777825994000,-625.31,0.00018144,2]
[421527571,1777825994000,-250.0,0.00018423,2]
[421527568,1777825994000,-500.88410587,0.00018317,2]
[421527569,1777825994000,-5000.0,0.00018423,2]
[421527570,1777825994000,-300.0,0.00018423,2]
[421527565,1777825994000,-150.0,0.00018112,2]
[421527613,1777825995000,-151.0,0.00019587,2]
[421527616,1777825995000,-151.0,0.00019587,2]
[421527618,1777825995000,-151.0,0.00019587,2]
[421527619,1777825995000,-500.0,0.00019587,2]
[421527623,1777825995000,-151.0,0.00019587,2]
[421527622,1777825995000,-500.0,0.00019587,2]
[421527624,1777825995000,-151.0,0.00019587,2]
[421527621,1777825995000,-151.0,0.00019587,2]
[421527620,1777825995000,-151.0,0.00019587,2]
[421527628,1777825995000,-150.0,0.00019751,4]
[421527630,1777825995000,-150.0,0.00019751,2]
[421527627,1777825995000,-293.96851987,0.00019587,2]
[421527626,1777825995000,-151.0,0.00019587,2]
[421527629,1777825995000,-150.0,0.00019751,2]
[421527632,1777825995000,-150.0,0.00019751,2]
[421527635,1777825995000,-166.66,0.00019932,2]
[421527631,1777825995000,-150.0,0.00019751,2]
[421527634,1777825995000,-150.0,0.00019751,2]
[421527625,1777825995000,-151.0,0.00019587,2]
[421527615,1777825995000,-151.0,0.00019587,2]
[421527597,1777825995000,-151.0,0.00019587,2]
[421527612,1777825995000,-151.0,0.00019587,2]
[421527633,1777825995000,-150.0,0.00019751,2]
[421527594,1777825995000,-625.31,0.0001954,2]
[421527595,1777825995000,-200.0,0.00019587,2]
[421527596,1777825995000,-500.0,0.00019587,2]
[421527598,1777825995000,-500.0,0.00019587,2]
[421527599,1777825995000,-151.0,0.00019587,2]
[421527600,1777825995000,-500.0,0.00019587,2]
[421527601,1777825995000,-151.0,0.00019587,2]
[421527603,1777825995000,-151.0,0.00019587,2]
[421527604,1777825995000,-500.0,0.00019587,2]
[421527602,1777825995000,-500.0,0.00019587,2]
[421527605,1777825995000,-151.0,0.00019587,2]
[421527606,1777825995000,-500.0,0.00019587,2]
[421527607,1777825995000,-151.0,0.00019587,2]
[421527610,1777825995000,-151.0,0.00019587,2]
[421527609,1777825995000,-66.70074768,0.00019587,2]
[421527611,1777825995000,-500.0,0.00019587,2]
[421527608,1777825995000,-433.29925232,0.00019587,2]
[421527617,1777825995000,-151.0,0.00019587,2]
[421527614,1777825995000,-500.0,0.00019587,2]
[421527637,1777825995000,-500.0,0.00020029,2]
[421527641,1777825995000,-500.0,0.00020029,2]
[421527643,1777825995000,-500.0,0.00020029,2]
[421527663,1777825995000,-169.81,0.00021023,2]
[421527664,1777825995000,-500.0,0.00021124,2]
[421527666,1777825995000,-150.0,0.00021214,4]
[421527669,1777825995000,-625.31,0.00021633,2]
[421527667,1777825995000,-16100.0759052,0.00021446,2]
[421527668,1777825995000,-2000.0,0.00021509,2]
[421527671,1777825995000,-33118.4782,0.00021854,2]
[421527670,1777825995000,-500.0,0.00021854,2]
[421527676,1777825995000,-150.0,0.00021945,4]
[421527672,1777825995000,-1062.7831645,0.00021854,2]
[421527675,1777825995000,-150.0,0.00021945,4]
[421527673,1777825995000,-286.65663759,0.00021873,2]
[421527674,1777825995000,-5000.0,0.00021918,2]
[421527678,1777825995000,-150.0,0.00021945,4]
[421527679,1777825995000,-674158.32641785,0.00021954,2]
[421527677,1777825995000,-150.0,0.00021945,4]
[421527680,1777825995000,-254.63148804,0.00021954,2]
[421527681,1777825995000,-235888.19799097,0.00021954,2]
[421527636,1777825995000,-952.15,0.0002,2]
[421527661,1777825995000,-57319.78993631,0.00021,2]
[421527659,1777825995000,-829.92652187,0.00021,2]
[421527665,1777825995000,-509.45410883,0.00021124,2]
[421527658,1777825995000,-625.31,0.00020935,2]
[421527639,1777825995000,-500.38515044,0.00020029,2]
[421527640,1777825995000,-500.0,0.00020029,2]
[421527638,1777825995000,-500.0,0.00020029,2]
[421527642,1777825995000,-500.0,0.00020029,2]
[421527662,1777825995000,-46419.02933522,0.00021,2]
[421527644,1777825995000,-303.89983346,0.00020029,2]
[421527645,1777825995000,-196.10016654,0.00020029,2]
[421527647,1777825995000,-1088.79370076,0.00020196,2]
[421527648,1777825995000,-890.11143512,0.00020196,2]
[421527649,1777825995000,-15839.94042377,0.00020196,2]
[421527646,1777825995000,-410.719833,0.00020196,2]
[421527652,1777825995000,-166.66,0.00020531,2]
[421527651,1777825995000,-150.0,0.00020482,4]
[421527653,1777825995000,-1000.0,0.00020577,2]
[421527654,1777825995000,-1000.0,0.00020577,2]
[421527657,1777825995000,-150.0,0.00020848,4]
[421527655,1777825995000,-501.3621661,0.00020577,2]
[421527656,1777825995000,-637.22346566,0.00020577,2]
[421527650,1777825995000,-625.31,0.00020237,2]
[421527660,1777825995000,-4674.1142066,0.00021,2]
[421527691,1777825996000,-331.0,0.00021954,2]
[421527693,1777825996000,-472.35060109,0.00021954,2]
[421527690,1777825996000,-6345.04,0.00021954,2]
[421527688,1777825996000,-786.11,0.00021954,2]
[421527685,1777825996000,-4613.10066665,0.00021954,2]
[421527689,1777825996000,-546.45054994,0.00021954,2]
[421527683,1777825996000,-977.92609215,0.00021944,2]
[421527684,1777825996000,-2856.76505938,0.00021954,2]
[421527682,1777825996000,-977.92609215,0.0001499,2]
[421527692,1777825996000,-1045.1366128,0.00021954,2]
[421527686,1777825996000,-595.45650509,0.00021954,2]
[421527694,1777825996000,-12415.90773027,0.00021954,2]
[421527687,1777825996000,-5215.32875628,0.00021954,2]
[421527700,1777825996000,-151.0,0.00021954,2]
[421527707,1777825996000,-8020.53308316,0.0002202,2]
[421527703,1777825996000,-515.33100783,0.00021997,2]
[421527704,1777825996000,-164881.57730713,0.00022,4]
[421527706,1777825996000,-3397.43151558,0.0002202,2]
[421527705,1777825996000,-121411.52172305,0.0002202,2]
[421527695,1777825996000,-606.9304466,0.00021954,2]
[421527697,1777825996000,-676949.9091,0.00021954,2]
[421527701,1777825996000,-181.359308,0.00021954,2]
[421527699,1777825996000,-151.0,0.00021954,2]
[421527696,1777825996000,-67112.92480264,0.00021954,2]
[421527698,1777825996000,-2000.0,0.00021954,2]
[421527702,1777825996000,-800.57109369,0.00021997,2]
[421527708,1777825997000,300.0,0.00010769,2]
[421527709,1777825997000,-420.0,0.00011837,2]
[421527712,1777825997000,2655.272677,0.000107,2]
[421527711,1777825997000,2105.272677,0.000107,2]
[421527710,1777825997000,250.0,9.787e-05,2]
[421527714,1777825997000,2655.272677,0.000107,2]
[421527716,1777825997000,2655.272677,0.000107,2]
[421527717,1777825997000,2655.272677,0.000107,2]
[421527718,1777825997000,2655.272677,0.000107,2]
[421527713,1777825997000,2655.272677,0.000107,2]
[421527715,1777825997000,2655.272677,0.000107,2]
[421527722,1777825998000,-500.0,0.000107,2]
[421527721,1777825998000,-500.0,0.000107,2]
[421527720,1777825998000,2655.272677,0.000107,2]
[421527719,1777825998000,2655.272677,0.000107,2]
[421527723,1777825999000,-257.0,8.897e-05,2]
[421527727,1777825999000,-300.0,0.00010699,2]
[421527728,1777825999000,-961.47,0.000107,2]
[421527726,1777825999000,-1261.47,0.000107,2]
[421527725,1777825999000,-812.975,0.000107,2]
[421527724,1777825999000,-191.495,0.00010302,2]
[421527729,1777826000000,-158.3952468,0.000107,2]
[421527730,1777826000000,-1261.47,0.000107,2]
[421527734,1777826001000,-1217.93693363,0.000107,2]
[421527733,1777826001000,-1217.93693363,0.000107,2]
[421527732,1777826001000,-500.0,0.000107,2]
[421527731,1777826001000,-1217.93693363,0.000107,2]
[421527735,1777826002000,-768.62711376,0.000107,2]
[421527736,1777826015000,532.875742,0.000294,120]
[421527737,1777826027000,-2001.24210779,0.000107,2]
[421527739,1777826035000,186.909142,0.0002842,120]
[421527741,1777826054000,336.644069,0.00029204,120]